bitfinex/quotes_SOLUSD_20240601
["timestamp","ask_amount","ask_price","bid_price","bid_amount"]
[1717252214226,6.2305,167.48,167.37,104.77861569]
[1717252214415,7.42545476,167.48,167.37,104.77861569]
[1717252214610,6.2305,167.48,167.37,104.77861569]
[1717252215425,2.2095,167.46,167.37,104.77861569]
[1717252215619,2.2095,167.46,167.37,110.26861569]
[1717252215830,2.2095,167.46,167.38,0.17]
[1717252216430,2.2095,167.46,167.38,0.34]
[1717252218411,2.2095,167.46,167.39,101.34]
[1717252218608,2.2093,167.47,167.4,5.83]
[1717252222718,2.2093,167.47,167.4,0.34]
[1717252226433,2.2095,167.46,167.4,0.34]
[1717252227018,2.2095,167.46,167.4,0.17]
[1717252227215,2.2095,167.46,167.39,0.34]
[1717252230223,2.2095,167.46,167.38,35.85]
[1717252230629,2.2096,167.45,167.38,35.85]
[1717252230939,6.2305,167.48,167.38,35.85]
[1717252231233,6.2305,167.48,167.37,60.34]
[1717252231234,0.6684573,167.52,167.48,95.85]
[1717252231439,0.6684573,167.52,167.49,0.34]
[1717252234540,6.1584573,167.52,167.49,0.34]
[1717252234747,6.1584573,167.52,167.48,0.34]
[1717252236144,0.6684573,167.52,167.48,0.34]
[1717252237445,0.6684573,167.52,167.47,35.85]
[1717252237642,0.6684573,167.52,167.44,113.8]
[1717252237643,6.8314573,167.52,167.44,113.8]
[1717252237831,6.8314573,167.52,167.44,119.29]
[1717252238142,6.8314573,167.52,167.44,113.8]
[1717252238848,6.8314573,167.52,167.45,0.17]
[1717252239139,6.8314573,167.52,167.45,0.34]
[1717252240423,6.8314573,167.52,167.46,113.8]
[1717252240629,6.8314573,167.52,167.47,0.34]
[1717252242351,12.3214573,167.52,167.47,0.34]
[1717252242855,6.8314573,167.52,167.47,0.34]
[1717252243145,12.3214573,167.52,167.47,0.34]
[1717252243353,0.6684573,167.52,167.48,60.0]
[1717252243530,0.6684573,167.52,167.49,0.34]
[1717252244226,0.6684573,167.52,167.49,0.17]
[1717252244434,6.8314573,167.52,167.47,35.85]
[1717252244639,6.8314573,167.52,167.48,0.34]
[1717252250461,0.6684573,167.52,167.48,0.34]
[1717252256342,0.6684573,167.52,167.48,60.34]
[1717252257058,0.6684573,167.52,167.48,0.34]
[1717252259859,7.1533573,167.52,167.48,0.17]
[1717252260055,12.6433573,167.52,167.48,0.17]
[1717252260242,6.4849,167.51,167.46,35.85]
[1717252260449,5.49,167.5,167.47,0.34]
[1717252262862,6.4849,167.51,167.47,0.34]
[1717252263164,7.1533573,167.52,167.44,95.85]
[1717252263348,5.49,167.49,167.44,35.85]
[1717252263659,11.9749,167.49,167.44,35.85]
[1717252264664,11.9749,167.49,167.45,0.17]
[1717252264838,11.9749,167.49,167.45,0.34]
[1717252265754,6.4849,167.49,167.45,0.34]
[1717252270367,6.4849,167.49,167.45,0.17]
[1717252270568,6.4849,167.49,167.44,35.85]
[1717252270869,6.0146,167.5,167.43,36.02]
[1717252271363,6.0146,167.5,167.41,47.8249]
[1717252271564,6.0146,167.5,167.41,35.85]
[1717252271954,8.2235,167.5,167.41,35.85]
[1717252272145,5.49,167.47,167.41,35.85]
[1717252272551,6.0146,167.5,167.42,100.85699508]
[1717252272775,6.0146,167.5,167.42,101.34]
[1717252273152,6.0146,167.5,167.42,119.29]
[1717252273551,5.49,167.48,167.42,119.29]
[1717252273775,11.5046,167.48,167.43,0.34]
[1717252274881,11.5046,167.48,167.43,0.17]
[1717252276274,5.49,167.48,167.43,0.17]
[1717252276482,5.49,167.51,167.44,119.29]
[1717252276783,5.49,167.51,167.45,0.34]
[1717252277071,11.5046,167.5,167.45,0.34]
[1717252277764,5.49,167.5,167.45,0.34]
[1717252277966,11.5046,167.49,167.42,122.72641568]
[1717252278173,11.5046,167.49,167.43,14.10481887]
[1717252278475,6.0146,167.49,167.43,9.09641568]
[1717252281174,6.0146,167.49,167.43,0.17]
[1717252281374,6.0146,167.49,167.43,0.34]
[1717252282060,6.0146,167.49,167.43,0.17]
[1717252282273,6.0146,167.49,167.42,110.26641568]
[1717252282464,6.0146,167.49,167.43,5.00878935]
[1717252282764,6.0146,167.49,167.42,95.85]
[1717252282969,6.0146,167.49,167.41,14.75641568]
[1717252283152,11.5046,167.46,167.41,9.26641568]
[1717252283359,11.5046,167.46,167.41,0.34]
[1717252283558,11.5046,167.46,167.41,9.26641568]
[1717252284061,11.5046,167.46,167.42,5.00950866]
[1717252284266,6.0146,167.46,167.41,9.26641568]
[1717252284485,11.5046,167.46,167.41,9.26641568]
[1717252285177,11.5046,167.46,167.41,0.17]
[1717252287562,6.0146,167.46,167.41,0.17]
[1717252287954,6.1963,167.45,167.4,35.85]
[1717252288178,8.4057,167.47,167.39,35.85]
[1717252288366,6.1963,167.47,167.39,35.85]
[1717252289491,5.49,167.45,167.39,41.34]
[1717252293560,8.4056,167.47,167.39,41.34]
[1717252296485,8.4056,167.47,167.39,35.85]
[1717252301494,8.4056,167.47,167.4,1.73385521]
[1717252302295,5.49,167.46,167.4,1.73385521]
[1717252303471,8.4056,167.47,167.4,1.73385521]
[1717252309220,2.2094,167.46,167.4,1.73385521]
[1717252310295,8.4056,167.47,167.4,61.73385521]
[1717252310496,5.49,167.46,167.41,0.34]
[1717252312114,6.239,167.46,167.41,0.34]
[1717252313110,6.239,167.46,167.41,1.53461766]
[1717252313694,6.239,167.49,167.42,95.85]
[1717252313890,6.239,167.49,167.43,5.83]
[1717252314109,6.239,167.49,167.44,1.23617791]
[1717252314501,11.729,167.49,167.44,1.23617791]
[1717252315213,6.239,167.49,167.44,1.23617791]
[1717252315413,6.239,167.49,167.44,5.49]
[1717252316297,6.239,167.49,167.43,54.14]
[1717252316298,6.239,167.49,167.43,59.63]
[1717252322131,6.239,167.49,167.44,5.49]
[1717252323598,6.239,167.49,167.45,0.17]
[1717252326296,6.239,167.48,167.44,0.17]
[1717252326503,6.239,167.48,167.44,5.66]
[1717252326705,8.4481,167.49,167.44,0.17]
[1717252327005,8.4481,167.49,167.43,0.17]
[1717252327207,6.239,167.49,167.43,0.34]
[1717252327407,6.239,167.49,167.43,5.83]
[1717252328127,6.239,167.49,167.43,5.49]
[1717252329008,7.6989,167.5,167.44,0.46289016]
[1717252329211,6.0431,167.48,167.44,0.46289016]
[1717252331427,6.0431,167.48,167.44,5.95289016]
[1717252332228,18.6511,167.51,167.44,5.49]
[1717252332536,16.4423,167.51,167.45,0.17]
[1717252332713,16.4423,167.51,167.45,5.66]
[1717252334534,18.6511,167.51,167.45,5.66]
[1717252336129,2.2088,167.51,167.45,5.66]
[1717252336430,2.2091,167.49,167.43,5.49]
[1717252337713,2.2089,167.5,167.43,5.49]
[1717252342741,7.6989,167.5,167.44,5.49]
[1717252343623,6.7115573,167.52,167.44,5.49]
[1717252343624,2.2088,167.51,167.44,5.49]
[1717252343830,7.6988,167.51,167.45,5.49]
[1717252344836,7.6988,167.51,167.43,0.34]
[1717252345040,7.6988,167.51,167.44,5.66]
[1717252346342,6.7115573,167.52,167.44,101.51]
[1717252346529,6.7115573,167.52,167.47,5.49]
[1717252346733,6.0431,167.51,167.47,5.49]
[1717252347520,6.0431,167.51,167.44,96.02]
[1717252347721,6.0431,167.51,167.47,5.49]
[1717252348023,6.0431,167.51,167.45,0.17]
[1717252348222,6.0431,167.51,167.47,5.49]
[1717252349435,6.0431,167.51,167.46,5.49]
[1717252349943,6.0431,167.51,167.45,0.17]
[1717252350242,6.0431,167.51,167.46,5.49]
[1717252351148,6.0431,167.51,167.47,5.49]
[1717252352641,0.6684573,167.52,167.47,5.49]
[1717252355447,0.6684573,167.52,167.48,5.49]
[1717252359929,0.6684573,167.52,167.47,5.49]
[1717252360245,12.5926573,167.52,167.46,5.66]
[1717252362039,12.5926573,167.52,167.45,0.17]
[1717252362353,12.5926573,167.52,167.46,5.49]
[1717252364050,12.5926573,167.52,167.47,1.03732949]
[1717252365054,6.1584573,167.52,167.47,1.03732949]
[1717252365250,6.1584573,167.52,167.46,5.49]
[1717252365548,6.1584573,167.52,167.45,0.34]
[1717252365745,6.1584573,167.52,167.46,5.49]
[1717252371247,0.6684573,167.52,167.47,5.49]
[1717252371455,6.8372573,167.52,167.47,5.49]
[1717252375362,6.8372573,167.52,167.49,5.49]
[1717252375565,0.6684573,167.52,167.5,5.49]
[1717252376050,0.6684573,167.52,167.49,5.49]
[1717252378658,0.6684573,167.52,167.46,113.8]
[1717252378860,0.6684573,167.52,167.49,5.49]
[1717252384964,0.6684573,167.52,167.47,0.34]
[1717252385262,0.6684573,167.52,167.49,5.49]
[1717252386271,0.6684573,167.52,167.47,0.34]
[1717252386479,0.6684573,167.52,167.49,5.49]
[1717252388681,0.6684573,167.52,167.47,0.34]
[1717252388880,0.6684573,167.52,167.49,5.49]
[1717252395779,6.2967,167.51,167.49,5.49]
[1717252395985,6.2967,167.51,167.47,5.49]
[1717252397074,0.6684573,167.52,167.47,5.49]
[1717252399466,0.6684573,167.52,167.48,5.49]
[1717252400894,0.6684573,167.52,167.45,44.77273822]
[1717252401079,0.6684573,167.52,167.46,0.34]
[1717252406090,0.6684573,167.52,167.46,96.18]
[1717252406389,0.6684573,167.52,167.46,114.13]
[1717252413374,0.6684573,167.52,167.51,5.49]
[1717252413576,0.6684573,167.52,167.5,5.49]
[1717252414705,0.6684573,167.52,167.48,95.84]
[1717252414895,0.6684573,167.52,167.5,5.49]
[1717252418103,0.6684573,167.52,167.49,0.34]
[1717252418578,0.6684573,167.52,167.49,5.83]
[1717252418777,0.6684573,167.52,167.49,0.34]
[1717252418977,0.6684573,167.52,167.49,5.83]
[1717252419691,0.6684573,167.52,167.49,0.34]
[1717252419913,0.6684573,167.52,167.49,5.83]
[1717252420119,0.6684573,167.52,167.49,0.34]
[1717252420606,0.6684573,167.52,167.51,5.49]
[1717252420913,0.6684573,167.52,167.51,5.83]
[1717252421208,0.6684573,167.52,167.51,5.66]
[1717252421384,0.6684573,167.52,167.51,5.49]
[1717252421574,0.6684573,167.52,167.51,0.34]
[1717252421784,0.6684573,167.52,167.51,5.83]
[1717252422295,0.6684573,167.52,167.51,41.67]
[1717252422999,0.6684573,167.52,167.51,36.18]
[1717252423399,0.6684573,167.52,167.51,41.67]
[1717252423597,0.6684573,167.52,167.51,5.66]
[1717252423893,0.6684573,167.52,167.51,5.49]
[1717252424277,0.6684573,167.52,167.5,60.0]
[1717252424487,0.6684573,167.52,167.51,5.49]
[1717252425605,0.6684573,167.52,167.51,5.83]
[1717252425792,0.6684573,167.52,167.51,0.34]
[1717252425999,0.6684573,167.52,167.51,5.83]
[1717252427004,0.6684573,167.52,167.51,0.34]
[1717252427303,0.6684573,167.52,167.51,5.83]
[1717252427979,0.6684573,167.52,167.51,0.34]
[1717252428179,0.6684573,167.52,167.51,5.83]
[1717252428381,0.6684573,167.52,167.51,5.66]
[1717252428607,0.6684573,167.52,167.51,0.17]
[1717252428784,0.6684573,167.52,167.51,5.49]
[1717252429109,0.6684573,167.52,167.5,95.84]
[1717252429402,0.6684573,167.52,167.51,5.49]
[1717252430906,0.6684573,167.52,167.5,95.84]
[1717252431099,0.6684573,167.52,167.51,5.49]
[1717252431700,0.6684573,167.52,167.5,95.84]
[1717252431905,0.6684573,167.52,167.51,5.49]
[1717252432502,0.6684573,167.52,167.51,5.66]
[1717252433307,0.6684573,167.52,167.51,42.49592728]
[1717252434683,0.6684573,167.52,167.51,37.00592728]
[1717252434992,0.6684573,167.52,167.51,36.18]
[1717252435192,0.6684573,167.52,167.51,41.67]
[1717252436085,0.6684573,167.52,167.51,59.62]
[1717252436285,0.6684573,167.52,167.51,36.18]
[1717252436512,0.6684573,167.52,167.51,41.67]
[1717252436689,0.6684573,167.52,167.51,36.18]
[1717252436890,0.6684573,167.52,167.51,41.67]
[1717252439120,0.6684573,167.52,167.51,36.18]
[1717252439422,0.6684573,167.52,167.51,41.67]
[1717252440324,0.6684573,167.52,167.51,5.83]
[1717252444919,0.6684573,167.52,167.51,0.34]
[1717252445221,0.6684573,167.52,167.51,5.83]
[1717252445421,0.6684573,167.52,167.51,5.66]
[1717252445927,0.6684573,167.52,167.51,0.17]
[1717252448016,0.6684573,167.52,167.51,5.66]
[1717252449409,0.6684573,167.52,167.51,65.66]
[1717252449630,0.6684573,167.52,167.51,65.83]
[1717252449820,0.6684573,167.52,167.51,60.34]
[1717252450331,0.6684573,167.52,167.51,65.83]
[1717252454725,0.6684573,167.52,167.51,101.67]
[1717252455934,0.6684573,167.52,167.51,119.62]
[1717252457741,0.6684573,167.52,167.51,139.62]
[1717252458049,0.6684573,167.52,167.51,134.13]
[1717252458233,0.6684573,167.52,167.51,139.62]
[1717252460430,0.6684573,167.52,167.51,134.13]
[1717252460647,0.6684573,167.52,167.51,139.62]
[1717252461645,0.6684573,167.52,167.51,134.13]
[1717252461842,0.6684573,167.52,167.51,139.62]
[1717252462735,6.2436,167.59,167.51,139.62]
[1717252462939,1.0360132,167.56,167.51,139.62]
[1717252463140,1.0360132,167.56,167.52,0.34]
[1717252463743,1.0360132,167.56,167.52,5.83]
[1717252464052,1.0360132,167.56,167.52,0.34]
[1717252464353,1.0360132,167.56,167.52,41.67]
[1717252464567,1.0360132,167.56,167.53,5.49]
[1717252464851,1.0360132,167.56,167.54,0.34]
[1717252468038,1.0360132,167.56,167.53,0.34]
[1717252468358,1.0360132,167.56,167.51,60.0]
[1717252468559,1.0360132,167.56,167.52,0.17]
[1717252469542,1.0360132,167.56,167.52,0.34]
[1717252470147,1.0360132,167.56,167.52,5.83]
[1717252471059,1.0360132,167.56,167.52,0.34]
[1717252471259,1.0360132,167.56,167.52,5.83]
[1717252473935,1.0360132,167.56,167.52,0.34]
[1717252474155,1.0360132,167.56,167.52,5.83]
[1717252474438,1.0360132,167.56,167.52,0.34]
[1717252479990,1.0360132,167.56,167.52,0.17]
[1717252480143,1.0360132,167.56,167.52,0.34]
[1717252486169,1.0360132,167.56,167.53,60.0]
[1717252486370,1.0360132,167.56,167.54,0.17]
[1717252486558,1.0360132,167.56,167.54,0.34]
[1717252491051,1.0360132,167.56,167.54,5.83]
[1717252493675,1.0360132,167.56,167.55,5.49]
[1717252493868,1.0360132,167.56,167.55,5.83]
[1717252494575,1.0360132,167.56,167.55,0.34]
[1717252495278,1.0360132,167.56,167.55,60.34]
[1717252495868,1.0360132,167.56,167.55,65.83]
[1717252497584,1.0360132,167.56,167.55,101.67]
[1717252499882,1.0360132,167.56,167.55,119.62]
[1717252501085,1.0360132,167.56,167.55,101.67]
[1717252501386,1.0360132,167.56,167.55,96.18]
[1717252504990,1.0360132,167.56,167.55,0.34]
[1717252505203,1.0360132,167.56,167.55,0.17]
[1717252505367,1.0360132,167.56,167.55,0.34]
[1717252506069,1.0360132,167.56,167.54,0.34]
[1717252510769,1.0360132,167.56,167.54,0.17]
[1717252510967,1.0360132,167.56,167.53,0.34]
[1717252515887,1.0360132,167.56,167.53,5.83]
[1717252516288,1.0360132,167.56,167.53,0.34]
[1717252518301,1.0360132,167.56,167.54,60.0]
[1717252518501,1.0360132,167.56,167.54,65.49]
[1717252519408,1.0360132,167.56,167.55,0.34]
[1717252526785,1.0360132,167.56,167.52,113.79]
[1717252526786,1.0360132,167.56,167.52,101.33]
[1717252526985,1.0360132,167.56,167.53,0.34]
[1717252528920,1.0360132,167.56,167.52,60.0]
[1717252531412,1.0360132,167.56,167.53,0.17]
[1717252531604,1.0360132,167.56,167.53,0.34]
[1717252538501,1.0360132,167.56,167.53,5.83]
[1717252538912,1.0360132,167.56,167.53,0.34]
[1717252548141,1.0360132,167.56,167.54,60.0]
[1717252548338,1.0360132,167.56,167.55,0.34]
[1717252549427,1.0360132,167.56,167.54,0.34]
[1717252554348,1.0360132,167.56,167.54,65.83]
[1717252555252,1.0360132,167.56,167.54,60.34]
[1717252558338,1.0360132,167.56,167.54,0.34]
[1717252559149,1.0360132,167.56,167.54,60.34]
[1717252560832,1.0360132,167.56,167.54,65.83]
[1717252562053,1.0360132,167.56,167.54,0.34]
[1717252566854,1.0360132,167.56,167.53,35.84]
[1717252567058,1.0360132,167.56,167.53,41.33]
[1717252567252,1.0360132,167.56,167.53,35.84]
[1717252567556,1.0360132,167.56,167.53,41.33]
[1717252567729,1.0360132,167.56,167.53,35.84]
[1717252572759,1.0360132,167.56,167.52,0.34]
[1717252579939,1.0360132,167.56,167.52,0.17]
[1717252580644,7.5658132,167.56,167.52,0.17]
[1717252581246,7.5658132,167.56,167.51,0.34]
[1717252581442,7.5658132,167.56,167.5,5.49]
[1717252581649,6.16,167.54,167.48,60.0]
[1717252582756,6.16,167.54,167.49,0.17]
[1717252582960,9.7740132,167.56,167.49,0.34]
[1717252583147,9.7740132,167.56,167.47,35.84]
[1717252583558,6.2217268,167.55,167.47,35.84]
[1717252583758,8.4300268,167.55,167.47,35.84]
[1717252587474,6.2217268,167.55,167.47,35.84]
[1717252588075,8.4300268,167.55,167.47,35.84]
[1717252597577,6.2217268,167.55,167.47,35.84]
[1717252599782,6.2217268,167.55,167.48,0.17]
[1717252599962,6.16,167.53,167.48,0.17]
[1717252600477,25.2992132,167.56,167.48,0.17]
[1717252600782,6.22121664,167.53,167.48,0.17]
[1717252600967,6.0056,167.55,167.48,0.17]
[1717252601164,6.22145205,167.53,167.48,0.17]
[1717252601365,12.22705205,167.53,167.48,0.17]
[1717252601559,3.2441132,167.56,167.48,60.17]
[1717252601866,6.16,167.54,167.49,0.17]
[1717252603767,6.16,167.55,167.49,6.33]
[1717252603967,7.25841193,167.56,167.5,0.17]
[1717252604572,7.25841193,167.56,167.49,0.34]
[1717252605893,7.25841193,167.56,167.49,6.5]
[1717252606268,7.25841193,167.56,167.49,0.34]
[1717252607685,7.25841193,167.56,167.52,60.0]
[1717252607865,7.25841193,167.56,167.53,0.34]
[1717252607866,1.0360132,167.56,167.53,0.34]
[1717252609578,1.0360132,167.56,167.54,60.0]
[1717252611186,1.0360132,167.56,167.53,6.5]
[1717252611390,1.0360132,167.56,167.53,0.34]
[1717252612572,1.0360132,167.56,167.5,95.84]
[1717252612774,1.0360132,167.56,167.51,0.34]
[1717252613173,1.0360132,167.56,167.51,0.17]
[1717252616593,1.0360132,167.56,167.51,0.34]
[1717252616788,1.0360132,167.56,167.52,60.0]
[1717252616993,1.0360132,167.56,167.53,0.34]
[1717252619690,1.0360132,167.56,167.53,6.5]
[1717252619986,1.0360132,167.56,167.54,102.0]
[1717252620171,1.0360132,167.56,167.55,0.34]
[1717252620371,1.0360132,167.56,167.54,6.16]
[1717252620585,1.0360132,167.56,167.53,6.5]
[1717252622089,1.0360132,167.56,167.54,60.0]
[1717252624091,1.0360132,167.56,167.54,102.0]
[1717252624293,1.0360132,167.56,167.55,6.5]
[1717252624881,1.0360132,167.56,167.55,0.34]
[1717252631496,1.0360132,167.56,167.55,42.34]
[1717252631794,1.0360132,167.56,167.55,44.10976551]
[1717252632583,1.0360132,167.56,167.55,37.94976551]
[1717252633998,1.0360132,167.56,167.55,6.5]
[1717252634199,1.0360132,167.56,167.55,0.34]
[1717252635290,1.0360132,167.56,167.55,6.5]
[1717252635709,1.0360132,167.56,167.55,0.34]
[1717252636007,1.0360132,167.56,167.54,0.34]
[1717252640787,1.0360132,167.56,167.55,6.16]
[1717252640988,1.0360132,167.56,167.55,6.33]
[1717252641813,1.0360132,167.56,167.55,0.17]
[1717252645015,1.0360132,167.56,167.55,6.33]
[1717252645611,1.0360132,167.56,167.55,6.5]
[1717252649612,1.0360132,167.56,167.55,42.34]
[1717252651127,1.0360132,167.56,167.55,36.18]
[1717252651799,1.0360132,167.56,167.55,42.34]
[1717252657309,1.0360132,167.56,167.55,60.29]
[1717252661125,1.0360132,167.56,167.55,54.13]
[1717252661327,1.0360132,167.56,167.55,60.29]
[1717252668638,1.0360132,167.56,167.55,54.13]
[1717252668849,1.0360132,167.56,167.55,60.29]
[1717252676437,1.0360132,167.56,167.55,80.29]
[1717252685647,1.0360132,167.56,167.55,86.7488]
[1717252685852,8.43570171,167.66,167.58,60.0]
[1717252685853,6.22890171,167.66,167.58,60.0]
[1717252686059,6.22890171,167.66,167.59,26.5]
[1717252686659,12.38890171,167.66,167.59,26.5]
[1717252686863,12.38890171,167.66,167.59,20.34]
[1717252687045,12.38890171,167.66,167.59,6.5]
[1717252688157,6.22890171,167.66,167.6,6.16]
[1717252688349,12.38890171,167.66,167.59,6.5]
[1717252688661,6.22890171,167.66,167.59,6.5]
[1717252690262,6.22890171,167.66,167.59,0.34]
[1717252690465,6.22890171,167.66,167.59,6.5]
[1717252694979,6.22890171,167.66,167.59,0.34]
[1717252695268,6.22890171,167.66,167.59,6.5]
[1717252697672,6.22890171,167.66,167.59,0.34]
[1717252697891,6.16,167.65,167.59,0.34]
[1717252698681,8.8355,167.67,167.59,0.34]
[1717252698980,1.19495476,167.66,167.56,60.0]
[1717252699157,1.19495476,167.66,167.55,46.75421976]
[1717252699359,2.2071,167.64,167.55,46.75421976]
[1717252700272,2.2071,167.64,167.56,6.16]
[1717252700879,2.2071,167.64,167.56,66.16]
[1717252701178,2.2071,167.64,167.57,0.34]
[1717252703481,2.2071,167.64,167.56,66.16]
[1717252704190,2.2071,167.64,167.57,0.17]
[1717252705687,2.2071,167.64,167.57,0.34]
[1717252706389,8.43387551,167.65,167.57,0.34]
[1717252708490,6.16,167.63,167.57,0.34]
[1717252709086,6.16,167.66,167.6,6.16]
[1717252709486,8.3668,167.66,167.6,6.16]
[1717252712090,2.2068,167.66,167.6,6.16]
[1717252712399,8.3668,167.66,167.6,6.16]
[1717252714497,8.3668,167.66,167.58,60.0]
[1717252714681,8.3668,167.66,167.6,6.16]
[1717252715600,2.2068,167.66,167.6,6.16]
[1717252717097,8.8355,167.67,167.6,6.16]
[1717252717479,6.16,167.66,167.6,6.16]
[1717252717995,8.8355,167.67,167.6,6.16]
[1717252719496,6.16,167.66,167.6,6.16]
[1717252720401,8.8355,167.67,167.6,6.16]
[1717252720602,6.16,167.66,167.6,6.16]
[1717252721193,6.16,167.66,167.59,0.34]
[1717252721395,6.16,167.66,167.6,6.16]
[1717252725701,6.16,167.66,167.59,0.34]
[1717252726081,8.8355,167.67,167.59,0.34]
[1717252726283,8.8355,167.67,167.59,6.5]
[1717252731700,6.6288,167.67,167.59,6.5]
[1717252732106,8.8355,167.67,167.59,6.5]
[1717252732814,6.6288,167.67,167.59,6.5]
[1717252733615,6.22477981,167.68,167.59,6.5]
[1717252733820,6.16,167.66,167.6,26.16]
[1717252735220,6.16,167.66,167.6,20.0]
[1717252735515,6.22477981,167.68,167.6,26.16]
[1717252735900,6.16,167.67,167.6,26.16]
[1717252736104,6.22477981,167.68,167.6,26.16]
[1717252737012,6.16,167.66,167.6,26.16]
[1717252737814,6.16,167.66,167.6,20.0]
[1717252738022,6.16,167.66,167.6,26.16]
[1717252738719,6.22477981,167.68,167.6,26.16]
[1717252738945,6.16,167.66,167.6,26.16]
[1717252741717,15.8668454,167.72,167.65,6.16]
[1717252741718,0.8331454,167.72,167.65,6.16]
[1717252742019,6.9931454,167.72,167.66,6.33]
[1717252742317,0.8331454,167.72,167.66,42.17]
[1717252742521,6.9931454,167.72,167.67,0.17]
[1717252742719,0.8331454,167.72,167.67,0.17]
[1717252744503,0.8331454,167.72,167.66,0.17]
[1717252744724,6.9931454,167.72,167.66,6.16]
[1717252745131,0.8331454,167.72,167.66,6.16]
[1717252745424,0.8331454,167.72,167.67,60.34]
[1717252745604,0.8331454,167.72,167.68,6.16]
[1717252745920,0.8331454,167.72,167.69,0.17]
[1717252746099,0.8331454,167.72,167.69,0.34]
[1717252747124,0.8331454,167.72,167.67,108.1861]
[1717252747327,0.8331454,167.72,167.68,0.34]
[1717252753345,6.16,167.69,167.64,53.77]
[1717252753636,6.16,167.69,167.64,59.983594]
[1717252754610,6.16,167.69,167.65,0.34]
[1717252757628,6.16,167.68,167.65,0.34]
[1717252757840,6.16,167.68,167.65,0.17]
[1717252758521,6.16,167.68,167.64,35.82]
[1717252759234,0.8331454,167.72,167.65,0.17]
[1717252760525,0.8331454,167.72,167.65,60.17]
[1717252762343,3.0391454,167.72,167.65,0.17]
[1717252762525,3.0391454,167.72,167.65,0.34]
[1717252763524,3.0391454,167.72,167.65,0.17]
[1717252764242,3.0391454,167.72,167.63,66.16]
[1717252764436,3.0391454,167.72,167.64,0.34]
[1717252767957,6.16,167.65,167.63,6.16]
[1717252768246,12.4373,167.64,167.56,35.82]
[1717252768455,6.16,167.59,167.56,35.82]
[1717252768823,6.16,167.6,167.56,35.82]
[1717252769228,6.2773,167.64,167.56,35.82]
[1717252771347,6.2773,167.64,167.57,0.17]
[1717252772149,8.4844,167.64,167.55,6.4473]
[1717252772342,6.16,167.58,167.56,0.17]
[1717252773135,6.16,167.58,167.55,0.34]
[1717252775655,6.16,167.58,167.55,0.17]
[1717252775826,6.16,167.58,167.54,0.34]
[1717252776247,6.2773,167.64,167.53,35.82]
[1717252776553,6.2773,167.64,167.52,8.93534175]
[1717252776554,21.7759,167.53,167.52,15.21264175]
[1717252776759,23.9844,167.53,167.52,8.93534175]
[1717252776961,6.1571,167.51,167.5,8.93534175]
[1717252777250,8.3659,167.51,167.5,13.94536073]
[1717252777629,6.1571,167.51,167.5,13.94536073]
[1717252778030,12.3171,167.51,167.5,8.93534175]
[1717252778648,18.53011287,167.51,167.5,8.93534175]
[1717252778845,20.73891287,167.51,167.5,8.93534175]
[1717252779044,20.73891287,167.51,167.49,8.93534175]
[1717252779349,6.16,167.5,167.49,8.93534175]
[1717252779862,6.16,167.5,167.49,8.94092257]
[1717252781034,14.57891287,167.51,167.49,8.94092257]